fUST/lending_fUST_20240728
["ID","MTS","AMOUNT","RATE_DAILY","PERIOD"]
[333473317,1722168632328,-500.0,0.00013961,2]
[333473318,1722168632464,-500.0,0.00013961,2]
[333473319,1722168632474,-500.0,0.00013961,2]
[333473320,1722168632483,-500.0,0.00013961,2]
[333473321,1722168632494,-500.0,0.00013961,2]
[333473322,1722168632506,-525.66,0.00013961,2]
[333473323,1722168632519,-500.0,0.00013961,2]
[333473324,1722168632529,-630.51,0.00013961,2]
[333473325,1722168632538,-505.36236804,0.00013961,2]
[333473326,1722168632548,-401.9,0.00013961,2]
[333473327,1722168632558,-505.74488057,0.00013961,2]
[333473328,1722168632568,-500.0,0.00013971,2]
[333473329,1722168632577,-500.0,0.00013971,2]
[333473330,1722168632587,-507.74738584,0.00013972,2]
[333473331,1722168632596,-500.0,0.00013972,2]
[333473332,1722168632610,-500.0,0.00013972,2]
[333473333,1722168632619,-500.0,0.00013972,2]
[333473334,1722168632629,-562.26,0.00013972,2]
[333473335,1722168632638,-638.3,0.00013972,2]
[333473336,1722168632648,-500.0,0.00013972,2]
[333473337,1722168632657,-500.0,0.00013972,2]
[333473338,1722168632667,-500.0,0.00013972,2]
[333473339,1722168632676,-500.0,0.00013972,2]
[333473340,1722168632687,-500.0,0.00013972,2]
[333473341,1722168632696,-500.0,0.00013972,2]
[333473342,1722168632706,-500.0,0.00013972,2]
[333473343,1722168632716,-500.0,0.00013972,2]
[333473344,1722168632726,-500.0,0.00013972,2]
[333473345,1722168632735,-566.78,0.00013972,2]
[333473346,1722168632746,-500.0,0.00013972,2]
[333473347,1722168632756,-623.37,0.00013972,2]
[333473348,1722168632765,-500.0,0.00013972,2]
[333473349,1722168632775,-589.59,0.00013972,2]
[333473350,1722168632784,-500.0,0.00013972,2]
[333473351,1722168632793,-500.0,0.00013972,2]
[333473352,1722168632803,-595.85,0.00013972,2]
[333473353,1722168632812,-500.0,0.00013972,2]
[333473354,1722168632821,-502.8479274,0.00013972,2]
[333473355,1722168632831,-503.11388745,0.00013972,2]
[333473356,1722168632841,-500.0,0.00013972,2]
[333473357,1722168632850,-500.0,0.00013972,2]
[333473358,1722168632859,-500.0,0.00013972,2]
[333473359,1722168632868,-500.0,0.00013972,2]
[333473360,1722168632878,-500.0,0.00013972,2]
[333473361,1722168632887,-500.0,0.00013972,2]
[333473362,1722168632896,-500.0,0.00013972,2]
[333473363,1722168632906,-500.0,0.00013972,2]
[333473364,1722168632916,-500.0,0.00013972,2]
[333473365,1722168632926,-281.09,0.00013972,2]
[333473366,1722168632935,-500.0,0.00013972,2]
[333473367,1722168632945,-370.51,0.00013972,2]
[333473368,1722168632954,-500.0,0.00013972,2]
[333473369,1722168632963,-1373.01,0.00013972,2]
[333473370,1722168632972,-500.0,0.00013972,2]
[333473371,1722168632982,-750.11,0.00013972,2]
[333473372,1722168632992,-500.0,0.00013972,2]
[333473373,1722168633001,-283.19,0.00013972,2]
[333473374,1722168633010,-326.31360631,0.00014102,2]
[333473375,1722168633021,-500.0,0.00014235,2]
[333473376,1722168633030,-500.0,0.00014235,2]
[333473377,1722168633040,-500.0,0.00014235,2]
[333473378,1722168633049,-500.0,0.00014235,2]
[333473379,1722168633058,-500.0,0.00014235,2]
[333473380,1722168633068,-500.0,0.00014235,2]
[333473381,1722168633078,-500.0,0.00014235,2]
[333473382,1722168633088,-500.0,0.00014235,2]
[333473383,1722168633097,-267.95,0.00014235,2]
[333473384,1722168633107,-371.33360214,0.00014235,2]
[333473385,1722168633116,-4578.06210712,0.00014244,2]
[333473386,1722168633126,-500.0,0.00014246,2]
[333473387,1722168633135,-500.0,0.00014246,2]
[333473388,1722168633146,-500.0,0.00014246,2]
[333473389,1722168633156,-432.27,0.00014246,2]
[333473390,1722168633166,-496.97,0.00014246,2]
[333473391,1722168633175,-500.0,0.00014246,2]
[333473392,1722168633185,-500.0,0.00014246,2]
[333473393,1722168633196,-500.0,0.00014246,2]
[333473394,1722168633206,-500.0,0.00014246,2]
[333473395,1722168633215,-500.0,0.00014246,2]
[333473396,1722168633224,-500.36,0.00014246,2]
[333473397,1722168633234,-500.0,0.00014246,2]
[333473398,1722168633245,-500.0,0.00014246,2]
[333473399,1722168633255,-500.0,0.00014246,2]
[333473400,1722168633268,-1373.01,0.00014246,2]
[333473401,1722168633280,-750.11,0.00014246,2]
[333473402,1722168633289,-500.0,0.00014246,2]
[333473403,1722168633302,-750.0,0.00014247,2]
[333473404,1722168633311,-286.42073265,0.00014445,2]
[333473405,1722168633320,-210.369159,0.00014481,2]
[333473406,1722168633330,-500.0,0.00014509,2]
[333473407,1722168633339,-500.0,0.00014509,2]
[333473408,1722168633348,-500.0,0.00014509,2]
[333473409,1722168633357,-500.0,0.00014509,2]
[333473410,1722168633367,-500.0,0.00014509,2]
[333473411,1722168633377,-323.24,0.00014509,2]
[333473412,1722168633387,-274.13,0.00014509,2]
[333473413,1722168633397,-500.0,0.00014509,2]
[333473414,1722168633407,-500.0,0.00014519,2]
[333473415,1722168633416,-500.0,0.0001452,2]
[333473416,1722168633425,-311.18,0.0001452,2]
[333473417,1722168633435,-506.87116694,0.0001452,2]
[333473418,1722168633444,-500.0,0.0001452,2]
[333473419,1722168633454,-500.0,0.0001452,2]
[333473420,1722168633464,-193.76,0.0001452,2]
[333473421,1722168633474,-500.0,0.0001452,2]
[333473422,1722168633484,-500.0,0.0001452,2]
[333473423,1722168633493,-1373.01,0.0001452,2]
[333473424,1722168633503,-750.11,0.0001452,2]
[333473425,1722168633513,-378.58494869,0.0001452,2]
[333473463,1722168642943,257.16409311,9.999e-05,2]
[333473658,1722169634255,-177.497409,9.999e-05,2]
[333473659,1722169634279,-250.22702269,9.999e-05,2]
[333473660,1722169634300,-166.666666,0.00012191,2]
[333473661,1722169634322,-64.28163981,0.00012289,2]
[333473662,1722169649154,-4991.92044029,0.00012289,2]
[333473663,1722169649182,-166.666666,0.00012523,2]
[333473664,1722169649210,-166.460108,0.00012798,2]
[333473665,1722169649235,-166.666666,0.00012855,2]
[333473666,1722169649260,-166.460108,0.00012872,2]
[333473667,1722169649285,-166.460108,0.00012946,2]
[333473668,1722169649310,-166.460108,0.0001302,2]
[333473669,1722169649337,-166.460108,0.00013094,2]
[333473670,1722169649363,-166.460108,0.00013168,2]
[333473671,1722169649391,-166.666666,0.00013188,2]
[333473672,1722169649418,-166.460108,0.00013242,2]
[333473673,1722169649444,-166.460108,0.00013316,2]
[333473674,1722169649469,-166.460108,0.0001339,2]
[333473675,1722169649494,-166.948882,0.00013425,2]
[333473676,1722169649520,-166.460108,0.00013465,2]
[333473677,1722169649545,-166.666666,0.0001352,2]
[333473678,1722169649571,-300.0,0.00013698,2]
[333473679,1722169649597,-300.0,0.00013698,2]
[333473680,1722169649620,-1309.08414742,0.00013699,2]
[333473682,1722169752114,-399.18,0.00010959,2]
[333473684,1722169814253,164.24967346,0.00010959,2]
[333473685,1722169816203,2.84046259,0.00010959,2]
[333473686,1722169816223,152.04249885,0.00010959,2]
[333473734,1722169832183,-1083.48520036,0.00013699,2]
[333473786,1722169838036,-251.18373258,0.00013283,2]
[333473788,1722169838046,-607.43065222,0.00013699,2]
[333473790,1722169838057,-194.46725522,0.00013699,2]
[333473792,1722169838066,-166.666666,0.00013852,2]
[333473794,1722169838080,-268.0,0.0001397,2]
[333473796,1722169838090,-191.0,0.0001397,2]
[333473798,1722169838101,-500.0,0.00013971,2]
[333473800,1722169838111,-500.0,0.00013971,2]
[333473802,1722169838122,-240.46110684,0.00013971,2]
[333473804,1722169838135,-259.53889316,0.00013971,2]
[333473806,1722169838144,-500.0,0.00013971,2]
[333473810,1722169838155,-500.0,0.00013971,2]
[333473812,1722169838165,-500.0,0.00013971,2]
[333473814,1722169838174,-500.0,0.00013971,2]
[333473816,1722169838183,-500.0,0.00013971,2]
[333473818,1722169838194,-500.0,0.00013971,2]
[333473820,1722169838205,-559.72752907,0.00013971,2]
[333473822,1722169838216,-762.72498694,0.00014142,2]
[333473824,1722169838226,-500.0,0.00014242,2]
[333473826,1722169838237,-500.0,0.00014242,2]
[333473828,1722169838248,-536.94,0.00014242,2]
[333473829,1722169838258,-541.21,0.00014242,2]
[333473831,1722169838267,-500.0,0.00014242,2]
[333473833,1722169838278,-500.0,0.00014242,2]
[333473835,1722169838291,-500.0,0.00014242,2]
[333473837,1722169838300,-522.91,0.00014242,2]
[333473839,1722169838310,-500.0,0.00014242,2]
[333473841,1722169838319,-500.0,0.00014242,2]
[333473842,1722169838329,-500.0,0.00014242,2]
[333473844,1722169838338,-500.0,0.00014242,2]
[333473846,1722169838348,-500.0,0.00014242,2]
[333473848,1722169838358,-500.0,0.00014242,2]
[333473850,1722169838367,-288.21540841,0.00014242,2]
[333474015,1722169840361,-211.78459159,0.00014242,2]
[333474017,1722169840372,-1209.32,0.00014242,2]
[333474019,1722169840381,-500.0,0.00014242,2]
[333474021,1722169840391,-500.0,0.00014242,2]
[333474023,1722169840400,-500.0,0.00014242,2]
[333474025,1722169840410,-500.0,0.00014242,2]
[333474027,1722169840420,-500.0,0.00014242,2]
[333474029,1722169840429,-500.0,0.00014242,2]
[333474031,1722169840440,-500.0,0.00014242,2]
[333474033,1722169840449,-500.0,0.00014242,2]
[333474035,1722169840459,-500.0,0.00014242,2]
[333474037,1722169840469,-500.0,0.00014242,2]
[333474039,1722169840478,-500.0,0.00014242,2]
[333474041,1722169840487,-500.0,0.00014242,2]
[333474043,1722169840499,-500.0,0.00014242,2]
[333474045,1722169840508,-625.1,0.00014242,2]
[333474047,1722169840518,-500.0,0.00014242,2]
[333474049,1722169840527,-504.01,0.00014242,2]
[333474051,1722169840536,-500.0,0.00014242,2]
[333474053,1722169840545,-500.0,0.00014242,2]
[333474055,1722169840555,-500.0,0.00014242,2]
[333474057,1722169840564,-500.0,0.00014242,2]
[333474059,1722169840576,-500.0,0.00014242,2]
[333474061,1722169840586,-500.0,0.00014242,2]
[333474063,1722169840597,-500.0,0.00014242,2]
[333474065,1722169840606,-500.0,0.00014242,2]
[333474067,1722169840616,-178.20762842,0.00014242,2]
[333474069,1722169840626,-500.0,0.00014242,2]
[333474071,1722169840635,-500.0,0.00014242,2]
[333474073,1722169840644,-500.0,0.00014242,2]
[333474075,1722169840654,-500.0,0.00014242,2]
[333474078,1722169840663,-189.97817766,0.00014242,2]
[333474080,1722169840673,-500.0,0.00014242,2]
[333474082,1722169840682,-455.17579962,0.00014242,2]
[333474084,1722169840694,-44.82420038,0.00014242,2]
[333474086,1722169840704,-500.0,0.00014242,2]
[333474088,1722169840713,-500.0,0.00014242,2]
[333474090,1722169840722,-201.42068127,0.00014242,2]
[333474092,1722169840731,-500.0,0.00014242,2]
[333474094,1722169840741,-500.0,0.00014243,2]
[333474096,1722169840753,-500.0,0.00014243,2]
[333474098,1722169840762,-500.0,0.00014243,2]
[333474100,1722169840772,-500.0,0.00014243,2]
[333474102,1722169840781,-500.0,0.00014243,2]
[333474104,1722169840790,-500.0,0.00014243,2]
[333474106,1722169840800,-500.0,0.00014243,2]
[333474108,1722169840810,-204.43,0.00014243,2]
[333474110,1722169840820,-500.0,0.00014243,2]
[333474112,1722169840830,-500.0,0.00014243,2]
[333474114,1722169840841,-500.0,0.00014243,2]
[333474116,1722169840853,-500.0,0.00014243,2]
[333474118,1722169840862,-124.35499835,0.00014243,2]
[333474180,1722169843101,-375.64500165,0.00014243,2]
[333474181,1722169843110,-500.0,0.00014243,2]
[333474182,1722169843120,-500.0,0.00014243,2]
[333474183,1722169843130,-500.0,0.00014243,2]
[333474184,1722169843140,-572.61,0.00014243,2]
[333474185,1722169843149,-500.0,0.00014243,2]
[333474186,1722169843158,-500.0,0.00014243,2]
[333474187,1722169843171,-500.0,0.00014243,2]
[333474188,1722169843180,-500.0,0.00014243,2]
[333474189,1722169843190,-500.0,0.00014243,2]
[333474190,1722169843200,-500.0,0.00014243,2]
[333474191,1722169843209,-500.0,0.00014243,2]
[333474192,1722169843219,-712.5,0.00014247,2]
[333474193,1722169843232,-334.922311,0.00014247,2]
[333474194,1722169843243,-5308.80312147,0.00014267,2]
[333474195,1722169843255,-164.4384806,0.00014374,2]
[333474196,1722169843264,-367.60913684,0.00014389,2]
[333474197,1722169843273,-229.13658612,0.00014445,2]
[333474198,1722169843282,-500.0,0.00014516,2]
[333474199,1722169843297,-500.0,0.00014516,2]
[333474200,1722169843309,-248.55,0.00014516,2]
[333474202,1722169843320,-500.0,0.00014516,2]
[333474203,1722169843331,-515.93074234,0.00014516,2]
[333474204,1722169843342,-308.78,0.00014516,2]
[333474205,1722169843351,-645.85,0.00014516,2]
[333474206,1722169843361,-1209.32,0.00014516,2]
[333474207,1722169843371,-280.91386986,0.00014516,2]
[333474208,1722169843381,-500.0,0.00014516,2]
[333474209,1722169843390,-500.0,0.00014516,2]
[333474210,1722169843400,-163.53,0.00014516,2]
[333474211,1722169843410,-459.34,0.00014516,2]
[333474212,1722169843420,-500.0,0.00014516,2]
[333474213,1722169843430,-501.9,0.00014516,2]
[333474214,1722169843440,-358.47,0.00014516,2]
[333474215,1722169843449,-280.66,0.00014516,2]
[333474216,1722169843458,-625.1,0.00014516,2]
[333474217,1722169843468,-227.85,0.00014516,2]
[333474218,1722169843478,-500.0,0.00014516,2]
[333474219,1722169843488,-500.0,0.00014516,2]
[333474220,1722169843499,-239.47,0.00014516,2]
[333474221,1722169843508,-500.0,0.00014516,2]
[333474222,1722169843517,-500.0,0.00014516,2]
[333474223,1722169843526,-463.88,0.00014516,2]
[333474224,1722169843536,-589.8,0.00014516,2]
[333474225,1722169843545,-358.93,0.00014516,2]
[333474226,1722169843554,-151.0,0.00014517,2]
[333474227,1722169843564,-151.0,0.00014517,2]
[333474228,1722169843574,-151.0,0.00014517,2]
[333474229,1722169843584,-151.0,0.00014517,2]
[333474230,1722169843593,-151.0,0.00014517,2]
[333474231,1722169843603,-499.36,0.00014517,2]
[333474232,1722169843613,-382.98,0.00014517,2]
[333474233,1722169843623,-423.37,0.00014517,2]
[333474234,1722169843633,-386.82,0.00014517,2]
[333474235,1722169843643,-151.0,0.00014518,2]
[333474236,1722169843652,-151.0,0.00014518,2]
[333474237,1722169843662,-151.0,0.00014535,2]
[333474238,1722169843672,-151.0,0.00014535,2]
[333474239,1722169843681,-151.0,0.00014535,2]
[333474240,1722169843691,-151.0,0.00014535,2]
[333474241,1722169843701,-234.801044,0.00014535,2]
[333474242,1722169843711,-151.0,0.00014535,2]
[333474243,1722169843722,-500.0,0.00014535,2]
[333474244,1722169843732,-500.0,0.00014535,2]
[333474245,1722169843742,-151.0,0.00014535,2]
[333474246,1722169843755,-1834.8059292,0.00014535,2]
[333474247,1722169843765,-596.05912786,0.00014544,2]
[333474248,1722169843775,-500.0,0.00014544,2]
[333474249,1722169843785,-278.675298,0.00014544,2]
[333474250,1722169843794,-222.10668,0.00014544,2]
[333474251,1722169843804,-151.0,0.00014544,2]
[333474252,1722169843813,-500.0,0.00014544,2]
[333474253,1722169843823,-151.0,0.00014544,2]
[333474254,1722169843833,-389.63907349,0.00014544,2]
[333474255,1722169843843,-500.0,0.00014544,2]
[333474256,1722169843853,-264.24634082,0.00014544,2]
[333474257,1722169843862,-500.0,0.00014544,2]
[333474258,1722169843872,-500.0,0.00014544,2]
[333474259,1722169843882,-500.0,0.00014544,2]
[333474260,1722169843891,-500.0,0.00014544,2]
[333474261,1722169843901,-500.0,0.00014544,2]
[333474262,1722169843910,-500.0,0.00014544,2]
[333474263,1722169843921,-500.0,0.00014544,2]
[333474264,1722169843930,-500.0,0.00014544,2]
[333474265,1722169843939,-500.05539604,0.00014544,2]
[333474266,1722169843949,-500.0,0.00014544,2]
[333474267,1722169843958,-500.0,0.00014544,2]
[333474268,1722169843968,-500.0,0.00014544,2]
[333474269,1722169843977,-500.0,0.00014544,2]
[333474270,1722169843988,-300.0,0.00014544,2]
[333474271,1722169843998,-500.0,0.00014544,2]
[333474272,1722169844007,-500.0,0.00014544,2]
[333474273,1722169844017,-500.0,0.00014544,2]
[333474274,1722169844026,-500.0,0.00014544,2]
[333474275,1722169844036,-500.0,0.00014544,2]
[333474276,1722169844045,-500.0,0.00014544,2]
[333474277,1722169844055,-500.0,0.00014544,2]
[333474278,1722169844064,-502.49066998,0.00014544,2]
[333474279,1722169844074,-500.0,0.00014544,2]
[333474280,1722169844086,-500.0,0.00014544,2]
[333474281,1722169844097,-500.0,0.00014544,2]
[333474282,1722169844107,-330.2254042,0.00014545,5]
[333474283,1722169844116,-174.470306,0.00014545,2]
[333474284,1722169844126,-151.0,0.00014545,2]
[333474285,1722169844135,-151.0,0.00014545,2]
[333474286,1722169844145,-289.191342,0.00014545,2]
[333474287,1722169844155,-151.0,0.00014545,2]
[333474288,1722169844165,-151.0,0.00014545,2]
[333474289,1722169844175,-4017.8371628,0.00014545,2]
[333474290,1722169844185,-2277.28013783,0.00014545,3]
[333474291,1722169844194,-267.99213488,0.00014545,2]
[333474292,1722169844204,-1091.03770757,0.00014545,2]
[333474293,1722169844214,-4238.58194221,0.00014545,2]
[333474294,1722169844224,-994.52512511,0.00014545,2]
[333474295,1722169844235,-1431.14662614,0.00014545,2]
[333474305,1722170316110,155.0,7.3e-05,2]
[333474306,1722170321121,155.0,7.3e-05,2]
[333474307,1722170325653,155.0,7.3e-05,2]
[333474308,1722170330786,155.0,7.3e-05,2]
[333474309,1722170335263,155.0,7.3e-05,2]
[333474310,1722170340142,155.0,7.3e-05,2]
[333474311,1722170345043,155.0,7.3e-05,2]
[333474312,1722170349902,295.96218842,7.3e-05,2]
[333474316,1722170390088,677.20352985,7.3e-05,2]
[333474336,1722170583936,-1487.86128804,8.848e-05,2]
[333474343,1722170609267,-182.9976024,8.848e-05,2]
[333474344,1722170609303,-850.00911267,8.848e-05,2]
[333474345,1722170609339,-2006.24346757,8.848e-05,2]
[333474347,1722170622841,-722.43709889,8.848e-05,2]
[333474348,1722170622875,-376.45103975,8.848e-05,2]
[333474359,1722170831150,-546.74672462,8.76e-05,2]
[333474360,1722170831171,-3782.59755445,8.848e-05,2]
[333474361,1722170831193,-300.0,9.998e-05,2]
[333474362,1722170831215,-250.22702269,9.999e-05,2]
[333474363,1722170831238,-154.66746495,9.999e-05,2]
[333474364,1722170831260,-154.95075127,9.999e-05,2]
[333474365,1722170831282,-249.67334773,9.999e-05,2]
[333474366,1722170831305,-182.9976024,9.999e-05,2]
[333474367,1722170831326,-180.32453325,9.999e-05,2]
[333474368,1722170831349,-200.0,0.0001,2]
[333474369,1722170831370,-400.0,0.0001137,2]
[333474370,1722170831391,-250.0,0.00012317,2]
[333474371,1722170831413,-166.666666,0.00012591,2]
[333474372,1722170831436,-1695.78734579,0.00012763,2]
[333474373,1722170832133,-2409.20104331,0.00012763,2]
[333474374,1722170836089,-250.0,0.00012763,2]
[333474375,1722170853112,-154.65974855,0.0001,2]
[333474376,1722170853133,-154.65974855,0.0001,2]
[333474377,1722170853156,-277.34028345,0.00012763,2]
[333474380,1722170958143,-273.37336231,9.9e-05,2]
[333474381,1722170958167,-250.22702269,9.999e-05,2]
[333474382,1722170958189,-182.9976024,9.999e-05,2]
[333474383,1722170958757,182.9976024,9.999e-05,2]
[333474384,1722170968101,-170.055388,0.00012763,2]
[333474385,1722170976635,206.172784,0.0001,2]
[333474386,1722170976657,33.93530566,0.0001,2]
[333474388,1722171009904,154.65203293,9.999e-05,2]
[333474432,1722171033984,-3131.4706708,0.00012857,2]
[333474434,1722171033995,-166.666666,0.00012935,2]
[333474437,1722171034005,-166.916463,0.00013053,2]
[333474439,1722171034015,-166.916463,0.0001315,2]
[333474441,1722171034024,-166.916463,0.00013247,2]
[333474443,1722171034034,-166.666666,0.00013278,2]
[333474445,1722171034044,-166.916463,0.00013344,2]
[333474447,1722171034053,-166.517381,0.00013425,2]
[333474449,1722171034063,-166.916463,0.00013442,2]
[333474451,1722171034073,-166.916463,0.00013539,2]
[333474453,1722171034083,-166.666666,0.00013621,2]
[333474455,1722171034093,-166.916463,0.00013636,2]
[333474457,1722171034105,-2717.9234204,0.00013699,2]
[333474459,1722171034115,-166.916463,0.00013733,2]
[333474461,1722171034125,-166.666666,0.00013965,2]
[333474463,1722171034135,-502.38203526,0.00014242,2]
[333474465,1722171034145,-500.0,0.00014242,2]
[333474467,1722171034155,-500.0,0.00014242,2]
[333474469,1722171034164,-517.36438797,0.00014242,2]
[333474471,1722171034174,-500.0,0.00014242,2]
[333474473,1722171034184,-507.50062194,0.00014242,2]
[333474475,1722171034195,-501.5405468,0.00014242,2]
[333474477,1722171034204,-500.0,0.00014242,2]
[333474479,1722171034215,-500.0,0.00014242,2]
[333474482,1722171034226,-203.835903,0.00014242,2]
[333474484,1722171034236,-390.99085489,0.00014242,2]
[333474486,1722171034247,-500.0,0.00014242,2]
[333474488,1722171034257,-450.07957162,0.00014242,2]
[333474490,1722171034269,-500.0,0.00014242,2]
[333474492,1722171034279,-282.95356242,0.00014242,2]
[333474494,1722171034288,-500.0,0.00014242,2]
[333474496,1722171034299,-500.0,0.00014242,2]
[333474498,1722171034309,-505.26667918,0.00014242,2]
[333474500,1722171034319,-500.0,0.00014242,2]
[333474502,1722171034329,-264.41833907,0.00014242,2]
[333474504,1722171034339,-500.0,0.00014242,2]
[333474506,1722171034348,-519.28653156,0.00014242,2]
[333474508,1722171034359,-442.42585387,0.00014247,2]
[333474511,1722171034372,-234.44914613,0.00014247,2]
[333474513,1722171034382,-318.176195,0.00014247,2]
[333474515,1722171034391,-367.60913684,0.0001425,2]
[333474517,1722171034400,-500.0,0.00014286,2]
[333474519,1722171034410,-500.0,0.00014286,2]
[333474521,1722171034419,-500.0,0.00014286,2]
[333474523,1722171034429,-500.0,0.00014286,2]
[333474525,1722171034439,-500.0,0.00014286,2]
[333474527,1722171034449,-500.0,0.00014286,2]
[333474529,1722171034459,-500.0,0.00014286,2]
[333474531,1722171034469,-500.0,0.00014286,2]
[333474533,1722171034479,-500.0,0.00014287,2]
[333474535,1722171034489,-530.72,0.00014287,2]
[333474537,1722171034500,-514.57,0.00014287,2]
[333474539,1722171034510,-518.66,0.00014287,2]
[333474541,1722171034521,-573.0,0.00014287,2]
[333474543,1722171034531,-500.0,0.00014287,2]
[333474545,1722171034541,-166.666666,0.00014308,2]
[333474547,1722171034551,-5308.80312147,0.00014331,2]
[333474561,1722171034660,-110.6050043,0.00014516,2]
[333474564,1722171034699,-99.8049957,0.00014516,2]
[333474566,1722171034708,-500.0,0.00014541,2]
[333474568,1722171034719,-47.27984983,0.00014541,2]
[333474571,1722171034740,-505.30015017,0.00014541,2]
[333474573,1722171034750,-635.89,0.00014541,2]
[333474575,1722171034760,-500.0,0.00014541,2]
[333474577,1722171034771,-500.0,0.00014541,2]
[333474579,1722171034780,-500.0,0.00014541,2]
[333474581,1722171034790,-482.98472437,0.00014541,2]
[333474583,1722171034799,-440.99447689,0.00014541,2]
[333474585,1722171034808,-500.0,0.00014541,2]
[333474587,1722171034817,-500.0,0.00014541,2]
[333474589,1722171034826,-500.0,0.00014541,2]
[333474591,1722171034835,-500.0,0.00014541,2]
[333474593,1722171034845,-500.0,0.00014541,2]
[333474595,1722171034854,-500.0,0.00014541,2]
[333474597,1722171034863,-500.0,0.00014542,2]
[333474599,1722171034873,-500.0,0.00014542,2]
[333474601,1722171034882,-500.0,0.00014542,2]
[333474603,1722171034891,-500.0,0.00014542,2]
[333474605,1722171034901,-500.0,0.00014542,2]
[333474608,1722171034910,-500.0,0.00014542,2]
[333474610,1722171034920,-500.0,0.00014542,2]
[333474612,1722171034929,-500.0,0.00014542,2]
[333474614,1722171034938,-500.0,0.00014542,2]
[333474616,1722171034948,-500.0,0.00014542,2]
[333474618,1722171034957,-500.0,0.00014542,2]
[333474620,1722171034966,-500.0,0.00014542,2]
[333474622,1722171034977,-500.0,0.00014542,2]
[333474624,1722171034986,-500.0,0.00014542,2]
[333474626,1722171034995,-635.05,0.00014542,2]
[333474628,1722171035005,-500.0,0.00014542,2]
[333474630,1722171035015,-500.0,0.00014542,2]
[333474632,1722171035025,-1108.54,0.00014542,2]
[333474634,1722171035035,-500.0,0.00014542,2]
[333474635,1722171035044,-500.0,0.00014542,2]
[333474637,1722171035054,-500.0,0.00014542,2]
[333474638,1722171035063,-500.0,0.00014542,2]
[333474640,1722171035073,-500.0,0.00014542,2]
[333474642,1722171035082,-500.0,0.00014542,2]
[333474644,1722171035092,-500.0,0.00014542,2]
[333474645,1722171035103,-500.0,0.00014542,2]
[333474647,1722171035112,-500.0,0.00014542,2]
[333474648,1722171035121,-194.46725522,0.00014545,2]
[333474649,1722171035131,-559.59727135,0.00014545,2]
[333474650,1722171035140,-1762.63074296,0.00014545,2]
[333474651,1722171035151,-4076.37747964,0.00014545,2]
[333474652,1722171035161,-1500.0,0.00014545,2]
[333474653,1722171035171,-268.54,0.0001456,2]
[333474654,1722171035181,-500.0,0.0001456,2]
[333474655,1722171035191,-419.36,0.0001456,2]
[333474656,1722171035201,-500.0,0.0001456,2]
[333474657,1722171035210,-364.32,0.0001456,2]
[333474658,1722171035220,-573.0,0.00014561,2]
[333474659,1722171035229,-500.0,0.00014561,2]
[333474660,1722171035238,-500.0,0.00014689,2]
[333474661,1722171035248,-447.72,0.00014689,2]
[333474662,1722171035257,-500.0,0.00014689,2]
[333474663,1722171035266,-815.82252143,0.0001469,2]
[333474664,1722171035276,-526.94940313,0.0001469,2]
[333474665,1722171035285,-994.52512511,0.0001469,2]
[333474666,1722171035295,-267.99213488,0.0001469,2]